fUST/lending_fUST_20240123
["ID","MTS","AMOUNT","RATE_DAILY","PERIOD"]
[312576848,1706021267016,-500.0,0.00041369,31]
[312576849,1706021267040,-500.0,0.00041369,31]
[312576850,1706021267063,-1113.45,0.00041369,31]
[312576851,1706021267085,-500.0,0.00041369,31]
[312576852,1706021267110,-500.0,0.00041369,31]
[312576853,1706021267133,-500.0,0.00041369,31]
[312576854,1706021267157,-500.0,0.00041369,31]
[312576855,1706021267181,-500.0,0.00041369,31]
[312576856,1706021267205,-835.16,0.00041369,31]
[312576857,1706021267229,-407.22148578,0.00041369,31]
[312576858,1706021267254,-500.0,0.00041369,31]
[312576859,1706021267278,-500.0,0.00041369,31]
[312576860,1706021267301,-385.90365149,0.00041369,31]
[312576861,1706021267325,-500.0,0.00041369,31]
[312576862,1706021267349,-500.0,0.00041369,31]
[312576863,1706021267373,-500.0,0.00041369,31]
[312576864,1706021267397,-500.0,0.00041369,31]
[312576865,1706021267422,-500.0,0.00041369,31]
[312576866,1706021267447,-500.0,0.00041369,31]
[312576867,1706021267569,-500.0,0.00041369,31]
[312576868,1706021267600,-508.90674141,0.00041369,31]
[312576869,1706021267624,-500.0,0.00041369,31]
[312576870,1706021267647,-500.0,0.00041369,31]
[312576871,1706021267670,-500.0,0.00041369,31]
[312576872,1706021267694,-500.0,0.00041369,31]
[312576873,1706021267719,-500.0,0.00041369,31]
[312576874,1706021267743,-516.00841721,0.00041369,31]
[312576875,1706021267767,-500.0,0.00041369,31]
[312576876,1706021267791,-500.0,0.00041369,31]
[312576877,1706021267815,-500.0,0.00041369,31]
[312576878,1706021267838,-500.0,0.00041369,7]
[312576879,1706021267863,-500.0,0.00041369,31]
[312576880,1706021267886,-500.0,0.00041369,31]
[312576881,1706021267909,-500.0,0.00041369,31]
[312576882,1706021267933,-500.0,0.00041369,31]
[312576883,1706021267957,-500.0,0.00041369,31]
[312576884,1706021267982,-500.0,0.00041369,31]
[312576885,1706021268007,-500.0,0.00041369,31]
[312576886,1706021268031,-500.0,0.00041369,31]
[312576887,1706021268054,-500.0,0.00041369,31]
[312576888,1706021268080,-500.0,0.00041369,31]
[312576889,1706021268107,-500.0,0.00041369,31]
[312576890,1706021268130,-505.95,0.00041369,31]
[312576891,1706021268154,-500.0,0.00041369,31]
[312576892,1706021268177,-500.0,0.00041369,31]
[312576893,1706021268200,-500.0,0.00041369,31]
[312576894,1706021268225,-500.0,0.00041369,31]
[312576895,1706021268248,-500.0,0.00041369,31]
[312576896,1706021268273,-500.0,0.00041369,31]
[312576897,1706021268296,-500.0,0.00041369,31]
[312576898,1706021268321,-500.0,0.00041369,31]
[312576899,1706021268346,-500.0,0.00041369,31]
[312576900,1706021268371,-500.0,0.00041369,31]
[312576901,1706021268395,-353.46062461,0.00041369,31]
[312576902,1706021268419,-500.0,0.00041369,31]
[312576903,1706021268443,-500.0,0.00041369,7]
[312576904,1706021268467,-500.0,0.00041369,31]
[312576905,1706021268492,-501.97481586,0.00041369,31]
[312576906,1706021268516,-500.0,0.00041369,31]
[312576907,1706021268539,-500.0,0.00041369,31]
[312576908,1706021268564,-500.0,0.00041369,31]
[312576909,1706021268587,-500.0,0.00041369,31]
[312576910,1706021268611,-500.0,0.00041369,31]
[312576911,1706021268636,-517.19504921,0.00041369,30]
[312576912,1706021268660,-500.0,0.00041369,31]
[312576913,1706021268683,-500.0,0.00041369,31]
[312576914,1706021268707,-500.0,0.00041369,31]
[312576915,1706021268731,-500.0,0.00041369,31]
[312576916,1706021268756,-500.0,0.00041369,31]
[312576917,1706021268780,-500.0,0.00041369,31]
[312576918,1706021268802,-500.0,0.00041369,31]
[312576919,1706021268825,-503.30052081,0.00041369,31]
[312576920,1706021268850,-500.0,0.00041369,31]
[312576921,1706021268873,-500.0,0.00041369,31]
[312576922,1706021268896,-500.0,0.00041369,31]
[312576923,1706021268919,-500.0,0.00041369,31]
[312576924,1706021268942,-500.0,0.00041369,31]
[312576925,1706021268966,-500.0,0.00041369,31]
[312576926,1706021268989,-500.0,0.00041369,31]
[312576927,1706021269016,-500.0,0.00041369,31]
[312576928,1706021269040,-500.0,0.00041369,31]
[312576929,1706021269063,-500.0,0.00041369,31]
[312576930,1706021269087,-500.0,0.00041369,31]
[312576931,1706021269111,-500.0,0.00041369,31]
[312576932,1706021269134,-500.0,0.00041369,31]
[312576933,1706021269157,-1036.26,0.00041369,31]
[312576934,1706021269181,-500.0,0.00041369,31]
[312576935,1706021269204,-500.0,0.00041369,31]
[312576936,1706021269228,-500.0,0.00041369,31]
[312576937,1706021269251,-500.0,0.00041369,31]
[312576938,1706021269275,-532.51,0.00041369,31]
[312576939,1706021269299,-605.25390018,0.00041369,31]
[312576940,1706021269327,-500.0,0.00041369,31]
[312576941,1706021269353,-500.0,0.00041369,31]
[312576942,1706021269377,-500.0,0.00041369,31]
[312576943,1706021269401,-500.0,0.00041369,31]
[312576944,1706021269425,-500.0,0.00041369,31]
[312576945,1706021269448,-500.0,0.00041369,31]
[312576946,1706021269475,-517.2469831,0.00041369,31]
[312576947,1706021269603,-577.63,0.00041369,31]
[312576948,1706021269628,-501.94403874,0.00041369,31]
[312576949,1706021269653,-601.97701158,0.00041369,31]
[312576950,1706021269679,-500.0,0.00041369,31]
[312576951,1706021269704,-502.12314983,0.00041369,31]
[312576952,1706021269729,-500.0,0.00041369,31]
[312576953,1706021269754,-500.0,0.00041369,31]
[312576954,1706021269779,-500.0,0.00041369,31]
[312576955,1706021269803,-690.48,0.00041369,31]
[312576956,1706021269827,-500.0,0.00041369,31]
[312576957,1706021269852,-500.0,0.00041369,31]
[312576958,1706021269876,-500.0,0.00041369,31]
[312576959,1706021269900,-500.0,0.00041369,31]
[312576960,1706021269924,-500.0,0.00041369,31]
[312576961,1706021269948,-380.92643163,0.00041369,31]
[312576962,1706021269976,-500.0,0.00041369,31]
[312576963,1706021270002,-500.0,0.00041369,31]
[312576964,1706021270027,-500.0,0.00041369,31]
[312576965,1706021270052,-500.0,0.00041369,31]
[312576966,1706021270078,-500.0,0.00041369,31]
[312576967,1706021270102,-501.41156561,0.00041369,31]
[312576968,1706021270127,-500.0,0.00041369,31]
[312576969,1706021270153,-500.0,0.00041369,31]
[312576970,1706021270178,-500.0,0.00041369,31]
[312576971,1706021270204,-500.0,0.00041369,31]
[312576972,1706021270229,-601.88006595,0.00041369,31]
[312576973,1706021270254,-150.0,0.00041369,31]
[312576974,1706021270280,-500.0,0.00041369,31]
[312576975,1706021270305,-500.0,0.00041369,31]
[312576976,1706021270330,-500.0,0.00041369,31]
[312576977,1706021270355,-500.0,0.00041369,31]
[312576978,1706021270382,-500.0,0.00041369,31]
[312576979,1706021270408,-705.29,0.00041369,31]
[312576980,1706021270433,-500.0,0.00041369,31]
[312576981,1706021270459,-500.0,0.00041369,31]
[312576982,1706021270484,-424.21702039,0.00041369,31]
[312576983,1706021270510,-500.0,0.00041369,31]
[312576984,1706021270536,-500.0,0.00041369,31]
[312576985,1706021270561,-552.59,0.00041369,31]
[312576986,1706021270585,-500.0,0.00041369,31]
[312576987,1706021270611,-500.0,0.00041369,31]
[312576988,1706021270635,-501.33914629,0.00041369,31]
[312576989,1706021270658,-500.0,0.00041369,31]
[312576990,1706021270682,-678.43,0.00041369,31]
[312576991,1706021270707,-500.0,0.00041369,31]
[312576992,1706021270732,-500.0,0.00041369,31]
[312576993,1706021270756,-500.0,0.00041369,31]
[312576994,1706021270782,-500.0,0.00041369,31]
[312576995,1706021270806,-557.8685206,0.00041369,14]
[312576996,1706021270830,-500.0,0.00041369,31]
[312576997,1706021270854,-502.85656565,0.00041369,31]
[312576998,1706021270878,-901.26,0.00041369,31]
[312576999,1706021270903,-500.0,0.00041369,31]
[312577000,1706021270927,-246.46435968,0.00041369,31]
[312577001,1706021270952,-500.0,0.00041369,31]
[312577002,1706021270985,-500.0,0.00041369,31]
[312577003,1706021271010,-511.88137014,0.00041369,31]
[312577004,1706021271033,-500.0,0.00041369,31]
[312577005,1706021271056,-500.0,0.00041369,31]
[312577006,1706021271081,-500.0,0.00041369,31]
[312577007,1706021271106,-502.22556907,0.00041369,31]
[312577008,1706021271129,-500.0,0.00041369,31]
[312577009,1706021271154,-500.0,0.00041369,31]
[312577010,1706021271178,-503.29833641,0.00041369,31]
[312577011,1706021271202,-500.0,0.00041369,31]
[312577012,1706021271227,-506.77282223,0.00041369,31]
[312577013,1706021271251,-500.0,0.00041369,31]
[312577014,1706021271276,-501.47499845,0.00041369,31]
[312577015,1706021271301,-500.0,0.00041369,31]
[312577016,1706021271325,-505.14132198,0.00041369,31]
[312577017,1706021271352,-520.95290142,0.00041369,31]
[312577018,1706021271378,-504.55892447,0.00041369,31]
[312577019,1706021271402,-500.0,0.00041369,31]
[312577020,1706021271427,-301.06657067,0.00041369,31]
[312577021,1706021271452,-500.0,0.00041369,31]
[312577022,1706021271477,-509.52610075,0.00041369,31]
[312577023,1706021271604,-576.07519279,0.00041369,31]
[312577024,1706021271639,-576.90041196,0.00041369,31]
[312577025,1706021271668,-503.34765903,0.00041369,31]
[312577026,1706021271694,-500.0,0.00041369,31]
[312577027,1706021271721,-500.0,0.00041369,31]
[312577028,1706021271746,-503.61283489,0.00041369,31]
[312577029,1706021271772,-388.28011788,0.00041369,31]
[312577030,1706021271798,-500.0,0.00041369,31]
[312577031,1706021271824,-500.0,0.00041369,31]
[312577032,1706021271853,-500.0,0.00041369,31]
[312577033,1706021271880,-200.0,0.00041369,31]
[312577034,1706021271905,-156.24773545,0.00041369,31]
[312577035,1706021271930,-500.0,0.00041369,31]
[312577036,1706021271957,-500.0,0.00041369,31]
[312577037,1706021271982,-500.0,0.00041369,31]
[312577038,1706021272010,-504.46543144,0.00041369,31]
[312577039,1706021272036,-500.0,0.00041369,31]
[312577040,1706021272062,-500.0,0.00041369,31]
[312577041,1706021272089,-500.0,0.00041369,31]
[312577042,1706021272115,-500.0,0.00041369,31]
[312577043,1706021272141,-500.0,0.00041369,31]
[312577044,1706021272167,-500.0,0.00041369,31]
[312577045,1706021272193,-500.0,0.00041369,31]
[312577046,1706021272219,-467.05896833,0.00041369,31]
[312577047,1706021272245,-661.66,0.00041369,31]
[312577048,1706021272271,-663.38,0.00041369,31]
[312577049,1706021272296,-500.0,0.00041369,31]
[312577050,1706021272321,-993.12,0.00041369,31]
[312577051,1706021272348,-500.0,0.00041369,31]
[312577052,1706021272374,-500.0,0.00041369,31]
[312577053,1706021272401,-500.0,0.00041369,31]
[312577054,1706021272428,-500.0,0.00041369,31]
[312577055,1706021272455,-507.26,0.00041369,31]
[312577056,1706021272483,-1220.46,0.00041369,31]
[312577057,1706021272510,-500.0,0.00041369,31]
[312577058,1706021272537,-500.0,0.00041369,31]
[312577059,1706021272563,-855.69,0.00041369,31]
[312577060,1706021272589,-500.0,0.00041369,31]
[312577061,1706021272615,-500.0,0.00041369,20]
[312577062,1706021272640,-503.12447277,0.00041369,31]
[312577063,1706021272667,-500.0,0.00041369,31]
[312577064,1706021272694,-889.89,0.00041369,31]
[312577065,1706021272721,-1145.19,0.00041369,31]
[312577066,1706021272748,-500.0,0.00041369,31]
[312577067,1706021272773,-500.0,0.00041369,31]
[312577068,1706021272799,-500.0,0.00041369,31]
[312577069,1706021272823,-500.0,0.00041369,31]
[312577070,1706021272848,-553.70432569,0.00041369,31]
[312577071,1706021272874,-500.0,0.00041369,31]
[312577072,1706021272900,-690.77,0.00041369,31]
[312577073,1706021272925,-500.0,0.00041369,31]
[312577074,1706021272950,-500.0,0.00041369,31]
[312577075,1706021272979,-500.0,0.00041369,31]
[312577076,1706021273005,-500.0,0.00041369,31]
[312577077,1706021273030,-1050.5,0.00041369,31]
[312577078,1706021273056,-500.0,0.00041369,31]
[312577079,1706021273082,-500.0,0.00041369,31]
[312577080,1706021273108,-500.0,0.00041369,31]
[312577081,1706021273135,-1087.76,0.00041369,31]
[312577082,1706021273160,-500.0,0.00041369,31]
[312577083,1706021273185,-649.08728926,0.00041369,31]
[312577084,1706021273211,-500.0,0.00041369,31]
[312577085,1706021273236,-719.12,0.00041369,31]
[312577086,1706021273261,-500.0,0.00041369,31]
[312577087,1706021273285,-500.0,0.00041369,31]
[312577088,1706021273311,-822.66,0.00041369,31]
[312577089,1706021273336,-214.9187677,0.00041369,31]
[312577090,1706021273362,-500.0,0.00041369,31]
[312577091,1706021273387,-501.90194518,0.00041369,31]
[312577092,1706021273413,-653.39,0.00041369,31]
[312577093,1706021273438,-950.16,0.00041369,7]
[312577094,1706021273464,-550.78189034,0.00041369,31]
[312577095,1706021273490,-503.9317497,0.00041369,31]
[312577096,1706021273517,-500.0,0.00041369,31]
[312577097,1706021273542,-500.0,0.00041369,31]
[312577098,1706021273668,-500.0,0.00041369,31]
[312577099,1706021273695,-430.71607449,0.00041369,31]
[312577100,1706021273723,-4993.58,0.00041369,31]
[312577101,1706021273748,-500.0,0.00041369,31]
[312577102,1706021273773,-500.0,0.00041369,31]
[312577103,1706021273799,-727.99,0.00041369,31]
[312577104,1706021273824,-1018.05,0.00041369,31]
[312577105,1706021273849,-500.0,0.00041369,31]
[312577106,1706021273876,-503.31246946,0.00041369,31]
[312577107,1706021273901,-502.20724659,0.00041369,31]
[312577108,1706021273927,-500.0,0.00041369,31]
[312577109,1706021273952,-500.0,0.00041369,31]
[312577110,1706021273982,-603.68571456,0.00041369,31]
[312577111,1706021274008,-500.0,0.00041369,31]
[312577112,1706021274032,-500.0,0.00041369,31]
[312577113,1706021274056,-500.0,0.00041369,31]
[312577114,1706021274080,-504.94806929,0.00041369,31]
[312577115,1706021274104,-698.34,0.00041369,31]
[312577116,1706021274129,-229.86827341,0.00041369,31]
[312577117,1706021274154,-500.0,0.00041369,31]
[312577118,1706021274179,-500.0,0.00041369,31]
[312577119,1706021274203,-503.61683679,0.00041369,31]
[312577120,1706021274229,-500.0,0.00041369,31]
[312577121,1706021274255,-601.83,0.00041369,31]
[312577122,1706021274280,-26934.74,0.00041369,14]
[312577123,1706021274304,-500.0,0.00041369,31]
[312577124,1706021274329,-500.0,0.00041369,31]
[312577125,1706021274356,-502.33269681,0.00041369,31]
[312577126,1706021274381,-500.0,0.00041369,31]
[312577127,1706021274407,-500.0,0.00041369,31]
[312577128,1706021274434,-500.0,0.00041369,31]
[312577129,1706021274460,-500.0,0.00041369,31]
[312577130,1706021274487,-500.0,0.00041369,31]
[312577131,1706021274513,-500.0,0.00041369,31]
[312577132,1706021274538,-500.0,0.00041369,31]
[312577133,1706021274564,-1273.46,0.00041369,31]
[312577134,1706021274589,-339.43796185,0.00041369,31]
[312577135,1706021274614,-506.85,0.00041369,31]
[312577136,1706021274639,-500.0,0.00041369,31]
[312577137,1706021274664,-500.0,0.00041369,31]
[312577138,1706021274688,-500.0,0.00041369,31]
[312577139,1706021274713,-531.88707939,0.00041369,31]
[312577140,1706021274737,-500.0,0.00041369,31]
[312577141,1706021274762,-500.0,0.00041369,31]
[312577142,1706021274787,-500.0,0.00041369,31]
[312577143,1706021274811,-500.0,0.00041369,31]
[312577144,1706021274835,-500.0,0.00041369,31]
[312577145,1706021274859,-500.0,0.00041369,31]
[312577146,1706021274883,-510.26342135,0.00041369,31]
[312577147,1706021274906,-500.0,0.00041369,31]
[312577148,1706021274930,-500.0,0.00041369,31]
[312577149,1706021274954,-501.983632,0.00041369,31]
[312577150,1706021274978,-760.56,0.00041369,31]
[312577151,1706021275004,-505.83463993,0.00041369,31]
[312577152,1706021275028,-500.0,0.00041369,31]
[312577153,1706021275052,-500.0,0.00041369,31]
[312577154,1706021275078,-518.59,0.00041369,31]
[312577155,1706021275101,-500.0,0.00041369,31]
[312577156,1706021275125,-500.0,0.00041369,31]
[312577157,1706021275150,-673.36,0.00041369,31]
[312577158,1706021275175,-500.0,0.00041369,31]
[312577159,1706021275200,-500.0,0.00041369,31]
[312577160,1706021275224,-500.0,0.00041369,31]
[312577161,1706021275247,-500.0,0.00041369,31]
[312577162,1706021275272,-500.0,0.00041369,31]
[312577163,1706021275297,-500.0,0.00041369,31]
[312577164,1706021275322,-503.5681238,0.00041369,31]
[312577165,1706021275346,-500.0,0.00041369,31]
[312577166,1706021275373,-500.0,0.00041369,31]
[312577167,1706021275397,-500.0,0.00041369,31]
[312577168,1706021275422,-500.0,0.00041369,31]
[312577169,1706021275446,-500.0,0.00041369,31]
[312577170,1706021275566,-511.40954347,0.00041369,31]
[312577171,1706021275591,-500.0,0.00041369,31]
[312577172,1706021275617,-500.0,0.00041369,31]
[312577173,1706021275642,-299.34730605,0.00041369,31]
[312577174,1706021275668,-500.0,0.00041369,31]
[312577175,1706021275692,-507.45262644,0.00041369,31]
[312577176,1706021275716,-511.22202753,0.00041369,31]
[312577177,1706021275740,-235.35443455,0.00041369,31]
[312577178,1706021275765,-500.0,0.00041369,31]
[312577179,1706021275790,-500.0,0.00041369,31]
[312577180,1706021275813,-500.0,0.00041369,31]
[312577181,1706021275838,-500.0,0.00041369,31]
[312577182,1706021275863,-500.0,0.00041369,31]
[312577183,1706021275887,-528.41103692,0.00041369,31]
[312577184,1706021275911,-502.46486111,0.00041369,31]
[312577185,1706021275935,-500.0,0.00041369,31]
[312577186,1706021275959,-500.0,0.00041369,31]
[312577187,1706021275987,-1001.26,0.00041369,31]
[312577188,1706021276010,-500.0,0.00041369,31]
[312577189,1706021276035,-638.07,0.00041369,31]
[312577190,1706021276058,-500.0,0.00041369,31]
[312577191,1706021276082,-500.0,0.00041369,31]
[312577192,1706021276107,-500.0,0.00041369,31]
[312577193,1706021276131,-1101.76,0.00041369,31]
[312577194,1706021276155,-500.0,0.00041369,31]
[312577195,1706021276178,-973.74,0.00041369,31]
[312577196,1706021276202,-500.0,0.00041369,31]
[312577197,1706021276226,-500.0,0.00041369,31]
[312577198,1706021276250,-500.0,0.00041369,31]
[312577199,1706021276274,-500.0,0.00041369,31]
[312577200,1706021276298,-500.0,0.00041369,31]
[312577201,1706021276321,-500.0,0.00041369,31]
[312577202,1706021276345,-500.0,0.00041369,31]
[312577203,1706021276369,-500.0,0.00041369,31]
[312577204,1706021276393,-516.41,0.00041369,31]
[312577205,1706021276418,-1055.33,0.00041369,31]
[312577206,1706021276442,-500.0,0.00041369,31]
[312577207,1706021276468,-510.59387543,0.00041369,31]
[312577208,1706021276492,-534.03117257,0.00041369,31]
[312577209,1706021276517,-501.30599879,0.00041369,31]
[312577210,1706021276541,-500.0,0.00041369,31]
[312577211,1706021276566,-742.32,0.00041369,31]
[312577212,1706021276590,-500.0,0.00041369,31]
[312577213,1706021276615,-500.0,0.00041369,31]
[312577214,1706021276638,-507.90586278,0.00041369,31]
[312577215,1706021276662,-606.2,0.00041369,31]
[312577216,1706021276685,-616.1843866,0.00041369,31]
[312577217,1706021276709,-500.0,0.00041369,31]
[312577218,1706021276732,-500.0,0.00041369,31]
[312577219,1706021276757,-500.0,0.00041369,31]
[312577220,1706021276781,-502.21475701,0.00041369,31]
[312577221,1706021276805,-511.68679362,0.00041369,31]
[312577222,1706021276830,-1128.21,0.00041369,31]
[312577223,1706021276854,-963.14,0.00041369,31]
[312577224,1706021276878,-500.0,0.00041369,31]
[312577225,1706021276902,-500.0,0.00041369,31]
[312577226,1706021276925,-676.58,0.00041369,31]
[312577227,1706021276948,-307.66570976,0.00041369,31]
[312577228,1706021276973,-206.44349762,0.00041369,31]
[312577229,1706021277001,-500.0,0.00041369,31]
[312577230,1706021277025,-375.0,0.0004137,90]
[312577231,1706021277050,-150.0,0.000414,30]
[312577232,1706021277075,-158.94551714,0.00041401,30]
[312577233,1706021277099,-2534.33849202,0.000415,14]
[312577234,1706021277125,-309.872709,0.00041553,120]
[312577235,1706021277149,-789.0,0.00041562,14]
[312577236,1706021277173,-158.3224257,0.00041573,30]
[312577237,1706021277197,-150.0,0.000416,30]
[312577238,1706021277221,-509.37026502,0.00041643,31]
[312577239,1706021277335,-503.33180468,0.00041643,31]
[312577240,1706021277360,-503.36597709,0.00041643,31]
[312577241,1706021277383,-402.2782029,0.00041643,31]
[312577242,1706021277407,-501.55466975,0.00041643,31]
[312577243,1706021277431,-505.53102025,0.00041643,31]
[312577244,1706021277456,-500.0,0.00041643,7]
[312577245,1706021277481,-500.0,0.00041643,31]
[312577246,1706021277506,-500.0,0.00041643,31]
[312577247,1706021277531,-500.0,0.00041643,31]
[312577248,1706021277554,-504.09079412,0.00041643,31]
[312577249,1706021277579,-500.0,0.00041643,31]
[312577250,1706021277604,-596.43,0.00041643,31]
[312577251,1706021277627,-500.0,0.00041643,31]
[312577252,1706021277651,-500.0,0.00041643,31]
[312577253,1706021277676,-1113.45,0.00041643,31]
[312577254,1706021277700,-500.0,0.00041643,31]
[312577255,1706021277725,-500.0,0.00041643,31]
[312577256,1706021277751,-500.0,0.00041643,31]
[312577257,1706021277775,-500.0,0.00041643,31]
[312577258,1706021277800,-500.0,0.00041643,31]
[312577259,1706021277825,-835.16,0.00041643,31]
[312577260,1706021277849,-500.0,0.00041643,31]
[312577261,1706021277875,-182.0261403,0.00041643,31]
[312577262,1706021277899,-548.1717107,0.00041643,31]
[312577263,1706021277923,-500.0,0.00041643,31]
[312577264,1706021277947,-503.52906368,0.00041643,31]
[312577265,1706021277971,-500.0,0.00041643,31]
[312577266,1706021277997,-500.0,0.00041643,31]
[312577267,1706021278023,-500.0,0.00041643,31]
[312577268,1706021278047,-500.0,0.00041643,31]
[312577269,1706021278070,-500.0,0.00041643,31]
[312577270,1706021278094,-500.0,0.00041643,31]
[312577271,1706021278118,-500.0,0.00041643,31]
[312577272,1706021278142,-500.0,0.00041643,31]
[312577273,1706021278167,-500.0,0.00041643,31]
[312577274,1706021278191,-500.0,0.00041643,31]
[312577275,1706021278215,-500.0,0.00041643,31]
[312577276,1706021278239,-500.0,0.00041643,31]
[312577277,1706021278263,-500.0,0.00041643,7]
[312577278,1706021278287,-500.0,0.00041643,31]
[312577279,1706021278311,-500.0,0.00041643,31]
[312577280,1706021278336,-500.0,0.00041643,31]
[312577281,1706021278361,-500.0,0.00041643,31]
[312577282,1706021278387,-352.16277512,0.00041643,31]
[312577283,1706021278412,-500.0,0.00041643,31]
[312577284,1706021278436,-500.0,0.00041643,31]
[312577285,1706021278461,-500.0,0.00041643,31]
[312577286,1706021278486,-500.0,0.00041643,31]
[312577287,1706021278510,-500.0,0.00041643,31]
[312577288,1706021278535,-500.0,0.00041643,31]
[312577289,1706021278560,-505.95,0.00041643,31]
[312577290,1706021278585,-500.0,0.00041643,31]
[312577291,1706021278612,-500.0,0.00041643,31]
[312577292,1706021278637,-504.61097244,0.00041643,31]
[312577293,1706021278662,-500.0,0.00041643,31]
[312577294,1706021278686,-500.0,0.00041643,31]
[312577295,1706021278710,-500.0,0.00041643,31]
[312577296,1706021278734,-500.0,0.00041643,31]
[312577297,1706021278759,-500.0,0.00041643,31]
[312577298,1706021278783,-500.0,0.00041643,31]
[312577299,1706021278807,-500.0,0.00041643,31]
[312577300,1706021278832,-500.0,0.00041643,31]
[312577301,1706021278857,-500.0,0.00041643,7]
[312577302,1706021278885,-500.0,0.00041643,31]
[312577303,1706021278910,-500.0,0.00041643,31]
[312577304,1706021278935,-500.0,0.00041643,31]
[312577305,1706021278960,-208.68099468,0.00041643,31]
[312577306,1706021279074,-500.0,0.00041643,31]
[312577307,1706021279099,-500.0,0.00041643,31]
[312577308,1706021279126,-411.39155133,0.00041643,31]
[312577309,1706021279152,-500.0,0.00041643,31]
[312577310,1706021279178,-500.0,0.00041643,31]
[312577311,1706021279204,-500.0,0.00041643,31]
[312577312,1706021279231,-500.0,0.00041643,31]
[312577313,1706021279257,-500.0,0.00041643,31]
[312577314,1706021279282,-500.0,0.00041643,31]
[312577315,1706021279307,-533.52133218,0.00041643,31]
[312577316,1706021279332,-500.0,0.00041643,31]
[312577317,1706021279360,-410.26201408,0.00041643,31]
[312577318,1706021279385,-503.49238565,0.00041643,31]
[312577319,1706021279410,-500.0,0.00041643,31]
[312577320,1706021279435,-500.0,0.00041643,31]
[312577321,1706021279460,-500.0,0.00041643,31]
[312577322,1706021279486,-500.0,0.00041643,31]
[312577323,1706021279511,-500.0,0.00041643,31]
[312577324,1706021279537,-500.0,0.00041643,31]
[312577325,1706021279562,-500.0,0.00041643,31]
[312577326,1706021279588,-500.0,0.00041643,31]
[312577327,1706021279615,-500.0,0.00041643,31]
[312577328,1706021279640,-1036.26,0.00041643,31]
[312577329,1706021279666,-503.43961795,0.00041643,31]
[312577330,1706021279691,-639.96700198,0.00041643,31]
[312577331,1706021279717,-500.0,0.00041643,31]
[312577332,1706021279743,-500.0,0.00041643,31]
[312577333,1706021279770,-532.51,0.00041643,31]
[312577334,1706021279795,-500.0,0.00041643,31]
[312577335,1706021279821,-500.0,0.00041643,31]
[312577336,1706021279845,-348.04663423,0.00041643,31]
[312577337,1706021279872,-509.65047196,0.00041643,31]
[312577338,1706021279895,-500.0,0.00041643,31]
[312577339,1706021279919,-500.0,0.00041643,31]
[312577340,1706021279943,-577.63,0.00041643,31]
[312577341,1706021279970,-504.53830446,0.00041643,31]
[312577342,1706021279995,-500.0,0.00041643,31]
[312577343,1706021280021,-500.0,0.00041643,31]
[312577344,1706021280046,-500.0,0.00041643,31]
[312577345,1706021280071,-690.48,0.00041643,31]
[312577346,1706021280095,-500.0,0.00041643,31]
[312577347,1706021280120,-500.0,0.00041643,31]